Cogmind - Beta 11.1 @@@ ROGUE MODE // 2022.04.23 @ 22:50:14 Player: Momo Result: Destroyed by C-57 Dissector with Dual-blade Saw Performance ------------- Evolutions (8) 4000 Regions Visited (22) 4400 Robots Destroyed (210) 1050 Value Destroyed (13283) 13283 Prototype IDs (20) 400 Alien Tech Used (0) 0 Bonus (9522) 9522 TOTAL SCORE: 32655 Bonus ------- High Alert Combat Kills 1941 Follower Combat Kills 4087 Entered Garrisons 1000 Used RIF Installer 2500 Aligned with FarCom 300 Met Zhirov 300 Built Enhanced Grunts 300 A7 Reached Mainframe 300 Met R17 at Cetus 500 Scanned by Researcher 500 Friendly Fire -2206 Cogmind --------- Core Integrity 0/1450 Matter 300/300 Energy 99/100 System Corruption 5% Temperature Cool (0) Movement Core (50) Location -2/Research Parts ------- > --- POWER (1) -------- (None) > --- PROPULSION (4) --- (None) > --- UTILITY (15) ----- Improved Weapon Shielding > --- WEAPON (3) ------- (None) > --- INVENTORY (5) ---- Quantum Reactor Enhanced Quantum Rifle Enhanced Quantum Rifle Enhanced Quantum Rifle Enhanced Quantum Rifle Peak State ------------ > --- POWER ------------ Antimatter Reactor > --- PROPULSION ------- Centrium Heavy Treads > --- UTILITY ---------- Lightpack 2.0 Advanced Launcher Guidance Computer Improved Kinecellerator Centrium Medium Armor Plating Centrium Medium Armor Plating Centrium Medium Armor Plating Graphene Brace Improved Remote Force Field Relay Coupler [ARC] Relay Coupler [Sentry] Relay Coupler [Demolisher] Relay Coupler [Hunter] > --- WEAPON ----------- Advanced KE Penetrator Advanced KE Penetrator > --- INVENTORY -------- Quantum Reactor Heavy Treads Advanced VSS Leg Advanced Heat Sink Experimental Heat Sink Improved Coolant Injector Advanced Coolant Injector Compact Battery Advanced Energy Well High-capacity Matter Pod Experimental Sensor Array Recoil Nullifier Improved Transmission Jammer Advanced Transmission Jammer Advanced Thermal Shield Improved Remote Force Field Relay Coupler [NC] Relay Coupler [NC] Relay Coupler [ARC] Relay Coupler [Swarmer] Relay Coupler [Cutter] Relay Coupler [Cutter] Relay Coupler [Cutter] Relay Coupler [Cutter] Relay Coupler [Grunt] Relay Coupler [Sentry] Relay Coupler [Sentry] Relay Coupler [Sentry] Relay Coupler [Specialist] Advanced Trap Extractor Railgun Magnetic Acceleration Cannon Hardcell Cannon Heavy Gauss Cannon Remote Datajack Improved Remote Datajack [Rating: 165] Favorites ----------- Power Ion Engine Engine Ion Engine Power Core Light Neutrino Core Reactor Quantum Reactor Propulsion Light Treads Treads Light Treads Leg Flexi-carbon Leg Wheel Armored Wheel Hover Unit Gyrokinetic Inverter Flight Unit Impulse Thruster Array Utility Relay Coupler [Sentry] Device Graphene Brace Storage Lightpack 2.0 Processor Advanced Launcher Guidance Computer Hackware Relay Coupler [Sentry] Protection Light Armor Plating Weapon Improved Remote Datajack Energy Gun Variable Charge Gun Energy Cannon Heavy Ion Cannon Ballistic Gun Assault Rifle Ballistic Cannon Heavy Gauss Cannon Launcher Rocket Launcher Special Weapon Improved Remote Datajack Slashing Weapon Katana Piercing Weapon Enhanced Force Lance Special Melee Weapon Advanced Datajack Build | -11 -10 -10 -10 -9 -8 -8 -8 -8 -8 -6 -6 -5 -5 -4 -4 -4 -4 -4 -4 -3 -3 -2 ------- Run | Scr Mat Min Exi Min Mat Gar Sto Gar Rec Fac Gar Fac Gar Fac Ext Cet Arc Hub Gar Res Qua Res Slots Evolved 16 | . . . . . 4 . . . . 4 . 2 . 2 . . . . . 2 . 2 Power . | . . . . . . . . . . . . . . . . . . . . . . . Propulsion 2 | . . . . . . . . . . . . . . . . . . . . . . 2 Utility 13 | . . . . . 4 . . . . 4 . 2 . 2 . . . . . 1 . . Weapon 1 | . . . . . . . . . . . . . . . . . . . . 1 . . Parts Attached 325 | 5 4 . 13 8 8 35 3 1 . 11 24 1 13 11 12 7 2 9 32 81 21 24 Power 28 | 1 . . 4 . . 2 . . . . 3 . 1 1 1 1 . 1 4 4 3 2 Engine 7 | 1 . . 3 . . 1 . . . . 1 . 1 . . . . . . . . . Core 7 | . . . 1 . . 1 . . . . 2 . . 1 1 . . . . . . 1 Reactor 14 | . . . . . . . . . . . . . . . . 1 . 1 4 4 3 1 Propulsion 46 | 2 2 . 3 3 3 4 . . . . 5 . 1 . . 1 . . 3 9 2 8 Treads 17 | . 2 . . 2 . 1 . . . . . . 1 . . 1 . . 1 7 1 1 Leg 8 | . . . 3 1 . . . . . . 4 . . . . . . . . . . . Wheel 13 | 2 . . . . 3 3 . . . . 1 . . . . . . . 2 2 . . Hover 4 | . . . . . . . . . . . . . . . . . . . . . . 4 Flight 4 | . . . . . . . . . . . . . . . . . . . . . 1 3 Utility 150 | 1 1 . 5 3 5 17 2 . . 8 6 1 5 10 5 . 1 2 16 43 12 7 Device 49 | . . . 2 . 2 1 1 . . . 1 1 2 3 4 . . . 5 19 5 3 Storage 9 | 1 . . 1 . 1 1 . . . . . . 1 2 . . . . 1 1 . . Processor 17 | . . . . . . 2 . . . 1 1 . . 1 . . . . . 6 3 3 Hackware 27 | . . . . . . . . . . 7 3 . 1 3 . . . 1 6 4 1 1 Protection 48 | . 1 . 2 3 2 13 1 . . . 1 . 1 1 1 . 1 1 4 13 3 . Artifact . | . . . . . . . . . . . . . . . . . . . . . . . Weapon 101 | 1 1 . 1 2 . 12 1 1 . 3 10 . 6 . 6 5 1 6 9 25 4 7 Energy Gun 6 | . . . . . . . . . . . 1 . 2 . . . . 1 . . 2 . Energy Cannon 10 | . . . . . . 7 . . . . 1 . . . . . . . . 2 . . Ballistic Gun 18 | 1 1 . 1 . . 1 . . . . 1 . . . . 1 . 1 3 8 . . Ballistic Cannon 15 | . . . . . . . 1 . . . 2 . 1 . 1 2 . 1 1 5 1 . Launcher 19 | . . . . 1 . 3 . . . 1 3 . 2 . 2 . 1 . . 6 . . Special Weapon 18 | . . . . . . . . . . 1 2 . 1 . 1 2 . 3 4 4 . . Impact Weapon . | . . . . . . . . . . . . . . . . . . . . . . . Slashing Weapon 5 | . . . . 1 . 1 . 1 . 1 . . . . . . . . 1 . . . Piercing Weapon 8 | . . . . . . . . . . . . . . . . . . . . . 1 7 Special Melee Weapon 2 | . . . . . . . . . . . . . . . 2 . . . . . . . Unidentified Prototypes 18 | . . . 4 . . 1 . . . . . . . 1 1 2 . 1 . 7 1 . Parts Lost 85 | . . . . 2 . 4 . . . 1 11 . 1 1 . . 2 1 9 36 . 17 Power 11 | . . . . . . 1 . . . 1 2 . . . . . . 1 2 2 . 2 Propulsion 10 | . . . . . . 1 . . . . 2 . 1 . . . . . . 4 . 2 Utility 47 | . . . . 1 . 1 . . . . 3 . . 1 . . 1 . 7 21 . 12 Weapon 17 | . . . . 1 . 1 . . . . 4 . . . . . 1 . . 9 . 1 Highest Loss Streak 16 | . . . . 2 . 2 . . . 1 6 . 1 1 . . 2 1 3 16 . 11 To Critical Strikes 1 | . . . . . . . . . . . 1 . . . . . . . . . . . Average Slot Usage (%) 86 | . 95 100 99 98 79 88 81 81 81 77 79 70 82 79 81 78 77 76 87 91 78 72 Engine 3 | . 14 14 13 14 9 2 . . . . 2 . 4 1 . . . . . . . . Core 2 | . . . . . . 6 9 9 9 3 3 5 . 3 5 3 . . . . . . Reactor 1 | . . . . . . . . . . . . . . . . 1 5 5 4 3 3 2 Treads 7 | . 6 28 24 10 11 4 9 9 9 6 1 . 3 5 5 5 5 5 4 2 3 . Leg 2 | . . . 3 17 . . . . . . 9 11 2 . . . . . . . . . Wheel 2 | . 21 . . . 6 11 9 9 9 6 . . . . . . . . . 2 . . Device 6 | . . . 3 . 4 . 4 . . . . . 8 8 8 5 5 5 13 20 10 6 Storage 7 | . 14 14 14 14 9 10 9 9 9 6 6 5 5 5 5 5 5 5 3 3 . . Processor 10 | . . . . . . 17 18 18 18 11 12 11 11 10 5 5 5 5 5 12 30 31 Hackware 15 | . . . . . . . . . . 21 25 23 26 28 36 36 36 34 28 19 14 10 Protection 9 | . 13 14 10 13 21 18 4 9 9 6 . . 3 4 5 5 5 5 13 8 3 7 Energy Cannon 1 | . . . . . . 9 3 . . . . . . . . . . . . 1 . . Ballistic Gun 6 | . 24 28 28 8 . 2 . . . . . . . . . . . 3 6 6 . . Launcher 1 | . . . . 5 9 4 9 9 9 5 . . . . . . . . . . . . Special Weapon 1 | . . . . . . . . . . 1 3 5 4 5 3 4 3 4 2 1 . . Slashing Weapon 1 | . . . . 13 9 . . 5 9 5 5 . . . . . . . . . . . Naked Turns . | . . . . . . . . . . . . . . . . . . . . . . . Heaviest Build 109 | 12 17 17 25 28 46 53 30 28 24 26 27 19 37 37 52 57 62 57 92 109 59 26 Greatest Support 80 | 26 40 40 40 40 40 20 12 12 12 12 35 35 70 70 70 80 80 80 80 75 60 31 Greatest Overweight (x) 11 | . . . 1 1 4 11 2 2 1 2 1 . 2 . . . . . 3 6 . 2 Average Overweight (x) . | . . . . . 1 2 2 1 1 1 . . . . . . . . . 1 . . Largest Inventory Capacity 40 | 8 8 8 10 10 15 40 40 40 40 40 40 40 40 40 40 40 40 40 40 15 5 5 Average Capacity 24 | 6 8 8 8 10 14 21 40 40 40 40 40 40 40 40 40 40 40 40 23 14 5 5 Most Carried 40 | 3 8 8 10 10 14 31 33 39 39 38 39 38 40 40 40 40 40 37 37 15 5 5 Average Carried 22 | 2 6 7 7 9 12 17 32 35 39 34 31 34 39 38 37 39 39 33 19 14 4 4 Final Capacity 40 | 8 8 8 10 10 15 40 40 40 40 40 40 40 40 40 40 40 40 40 15 5 5 5 Final Carried 40 | 3 6 8 10 10 14 31 33 39 39 35 33 38 40 37 40 40 37 35 15 5 5 5 Class Distribution -------------------- 29% | Botlord-Mutant 19% | Bothacker-Mutant 19% | Mutant 14% | Scavenger-Mutant 12% | Hauler-Mutant 4% | Botlord-Gunner Dominant Class ---------------- Mutant | -10/Materials Mutant | -10/Mines Mutant | -10/Exiles Scavenger-Mutant | -9/Mines Scavenger-Mutant | -8/Materials Scavenger-Mutant | -8/Garrison Hauler-Mutant | -8/Storage Hauler-Mutant | -8/Garrison Hauler-Mutant | -8/Recycling Hauler-Mutant | -6/Factory Bothacker-Mutant | -6/Garrison Bothacker-Mutant | -5/Factory Bothacker-Mutant | -5/Garrison Botlord-Mutant | -4/Factory Botlord-Mutant | -4/Extension Botlord-Mutant | -4/Cetus Botlord-Mutant | -4/Archives Botlord-Mutant | -4/Hub_04(d) Botlord-Mutant | -4/Garrison Botlord-Mutant | -3/Research Scavenger-Mutant | -3/Quarantine Scavenger-Mutant | -2/Research Resources | -11 -10 -10 -10 -9 -8 -8 -8 -8 -8 -6 -6 -5 -5 -4 -4 -4 -4 -4 -4 -3 -3 -2 ----------- Run | Scr Mat Min Exi Min Mat Gar Sto Gar Rec Fac Gar Fac Gar Fac Ext Cet Arc Hub Gar Res Qua Res Matter Collected 9664 | 155 . 29 634 196 81 905 34 215 42 240 683 . 307 231 358 431 . 344 1323 2946 170 340 Remotely 865 | . . . . . . . . . . . . . . . . . . . . 865 . . Salvage Created 8531 | 24 54 . 206 318 358 865 90 346 . 274 533 . 367 21 44 68 687 140 1366 2151 169 450 Parts 406 | 2 6 . 19 27 16 48 7 25 . 8 31 . 12 . . 4 31 4 47 79 15 25 Haulers Intercepted 2 | . . . . . . . 1 . . 1 . . . . . . . . . . . . Recyclers Shooed 2 | . . . . 1 . . . . . . . . . . 1 . . . . . . . Parts Field Recycled . | . . . . . . . . . . . . . . . . . . . . . . . Retrieved Matter . | . . . . . . . . . . . . . . . . . . . . . . . Parts Self-Destructed . | . . . . . . . . . . . . . . . . . . . . . . . Prevented . | . . . . . . . . . . . . . . . . . . . . . . . Kills | -11 -10 -10 -10 -9 -8 -8 -8 -8 -8 -6 -6 -5 -5 -4 -4 -4 -4 -4 -4 -3 -3 -2 ------- Run | Scr Mat Min Exi Min Mat Gar Sto Gar Rec Fac Gar Fac Gar Fac Ext Cet Arc Hub Gar Res Qua Res Combat Hostiles Destroyed 175 | . 3 . 1 9 7 29 1 10 . 1 25 . 6 . 1 1 8 3 12 45 2 11 Melee 22 | . . . . 1 4 4 . . . . 2 . . . . . . . . . . 11 Guns 54 | . 3 . 1 8 . 2 . . . . 2 . . . . . . 1 11 26 . . Cannons 25 | . . . . . . 8 1 . . . 5 . 1 . 1 1 . 2 1 3 2 . AOE 69 | . . . . . 3 15 . 10 . 1 15 . 3 . . . 7 . . 15 . . Classes Destroyed 23 | 1 1 . 1 4 1 2 2 . . 1 3 . . . . . 1 1 1 2 2 . Worker 5 | . . . . . 1 . . . . 1 . . . 1 . . . . . . 2 . Builder 3 | . . . . . . . 1 . . . . . . . . . . . . 2 . . Tunneler 5 | 1 . . . 2 1 . . . . 1 . . . . . . . . . . . . Hauler 2 | . . . . . . . 1 . . 1 . . . . . . . . . . . . Recycler 3 | . . . . 1 1 . . . . 1 . . . . . . . . . . . . Mechanic 1 | . . . . . . . . . . . . . . . . . . . . . 1 . Watcher 2 | . . . . . . 1 . . . . . . . . . . . . . . . 1 Swarmer 65 | . 3 . . 4 3 13 . 9 . . 11 . 2 . . . . . . 10 . 10 Saboteur 4 | . . . . . . 4 . . . . . . . . . . . . . . . . Grunt 36 | . . . . 2 . 7 . 2 . . 10 . 4 . . . . . 4 7 . . Brawler 3 | . . . . . . . . . . . . . . . . . . . 3 . . . Duelist 3 | . . . . 1 . . . . . . 2 . . . . . . . . . . . Protector 1 | . . . . . . . . . . . 1 . . . . . . . . . . . Researcher 1 | . . . . . . . . . . . . . . . . . . . . . 1 . Sentry 19 | . . . . 2 4 5 1 . . . . . . . . . 6 . . 1 . . Demolisher 7 | . . . . . . . . . . . 1 . . . . . . . . 6 . . Specialist 2 | . . . . . . . . . . . . . . . . . . 1 1 . . . Hunter 8 | . . . . . . . . . . . . . . . . . 3 . . 5 . . Programmer 12 | . . . . . . . . . . 1 . . . . 1 . . 2 3 2 2 1 Behemoth 4 | . . . . . . . . . . . 1 . 1 . . . . . 1 1 . . Cetus Guard 1 | . . . . . . . . . . . . . . . . 1 . . . . . . Striker 11 | . . . . . . . . . . . . . . . . . . . . 11 . . Executioner 2 | . . . . . . . . . . . . . . . . . . . . 2 . . Zionite 6 | . . . 6 . . . . . . . . . . . . . . . . . . . Guerrilla 1 | . . . . . . . . . . . . . . . . . 1 . . . . . Best Kill Streak 12 | 1 3 . 6 4 3 8 3 7 . 3 7 . 3 1 1 1 8 2 2 12 2 11 Combat Bots Only 12 | . 3 . 1 4 3 8 1 7 . 1 7 . 3 . 1 1 8 2 2 12 2 11 Max Kills in Single Turn 4 | 1 1 . 1 2 2 3 1 3 . 2 3 . 2 1 1 1 4 1 1 4 1 1 Gunslinging . | . . . . . . . . . . . . . . . . . . . . . . . Exploded 4 | . . . . . 2 3 . 3 . 1 3 . 2 . . . 3 . . 4 . . Melee 1 | . . . . 1 1 1 . . . . 1 . . . . . . . . . . 1 Uniques/NPCs Destroyed 4 | . . . 4 . . . . . . . . . . . . . . . . . . . EX-HEX (-10/Exiles) EX-BIN (-10/Exiles) 8R-AWN (-10/Exiles) EX-DEC (-10/Exiles) Combat | -11 -10 -10 -10 -9 -8 -8 -8 -8 -8 -6 -6 -5 -5 -4 -4 -4 -4 -4 -4 -3 -3 -2 -------- Run | Scr Mat Min Exi Min Mat Gar Sto Gar Rec Fac Gar Fac Gar Fac Ext Cet Arc Hub Gar Res Qua Res Damage Taken 21155 | . 55 16 78 333 323 358 18 118 . 241 1558 . 349 687 339 236 911 557 1855 9811 375 2937 Core 3335 | . 17 . 28 78 16 52 . . . 18 294 . 52 72 34 27 35 21 93 996 34 1468 Absorbed by Shields 803 | . . . . . . . . . . . 40 . . . 28 12 . . 219 504 . . Reduced by Siege Mode 935 | . . . . . . . . . . . . . . . . . . . 45 840 50 . Redirected to Shielding 247 | . . . . . . . . . . . . . . . . . . . . 113 13 121 Regen/Repaired (Parts) 57 | . . . . . . . . . . 57 . . . . . . . . . . . . Core Remaining (%) 69 | 100 . . . 50 . . . . 87 . 63 . 94 . . . . . 75 . 20 . Volleys Fired 738 | 1 10 1 32 21 3 140 6 13 . 19 67 . 32 27 35 10 8 32 110 157 14 . Largest 3 | 1 2 2 2 2 1 2 1 1 . 1 1 . 2 1 1 2 1 2 2 3 2 . Hottest 260 | 20 40 40 44 44 33 130 44 36 . 43 225 . 128 225 225 114 61 260 96 213 155 . Shots Fired 959 | 1 15 2 58 28 3 157 6 13 . 19 67 . 35 27 35 19 8 39 153 256 18 . Gun 524 | 1 15 2 58 28 . 82 . . . . 17 . 11 9 1 . . 10 126 161 3 . Cannon 205 | . . . . . . 49 6 . . . 14 . 6 . 13 17 2 6 13 64 15 . Launcher 96 | . . . . . 3 26 . 13 . 4 22 . 11 . 2 . 4 . . 11 . . Special 134 | . . . . . . . . . . 15 14 . 7 18 19 2 2 23 14 20 . . Kinetic 635 | 1 15 2 58 28 . 82 6 . . . 26 . 6 . 13 17 2 15 139 210 15 . Thermal 94 | . . . . . . 49 . . . . 5 . 11 9 1 . . 1 . 15 3 . Explosive 75 | . . . . . 3 26 . 13 . 4 18 . . . . . . . . 11 . . Electromagnetic 21 | . . . . . . . . . . . 4 . 11 . 2 . 4 . . . . . Robot Hit Streak 43 | . 2 4 11 8 5 23 20 . . 10 12 . 5 10 12 11 2 10 18 43 23 . Robot Miss Streak 8 | 1 5 . 3 5 . 3 4 . . 3 8 . 2 1 1 2 1 3 2 3 1 . Penetration Max 1 | . . . . . . . . . . . . . . . . 1 . . 1 1 . . Secondary Targets 2 | . . . . 1 . . . . . . . . . . . . . . 1 . . . Max Gunslinging Chain 1 | . . . . 1 . . . . . . . . . . . . . . 1 . . . Shots Hit Robots 738 | . 5 2 45 27 16 106 6 7 . 15 52 . 14 20 29 11 4 29 116 199 17 18 Core Hits 436 | 1 4 . 21 18 11 66 9 23 . 7 60 . 17 2 5 4 37 4 35 92 9 11 Critical Kills 24 | . . . . . . 1 . . . . 1 . . . . . . . 10 12 . . Critical Parts Destroyed 22 | . . . . . . 1 . . . . 1 . . . . . . 2 8 10 . . Critical Strikes 74 | . . . . . 2 2 . . . . 2 . 2 . 1 1 . 5 20 28 6 5 Meltdown 1 | . . . . . . . . . . . . . . . . . . . . 1 . . Destroy 48 | . . . . . . 2 . . . . 2 . . . . . . 2 20 22 . . Blast 17 | . . . . . . . . . . . . . 2 . 1 1 . 3 . 5 5 . Sever 2 | . . . . . 2 . . . . . . . . . . . . . . . . . Impale 6 | . . . . . . . . . . . . . . . . . . . . . 1 5 Melee Attacks 88 | . . . . 2 16 1 . 10 1 4 11 . . . 2 . . . 1 . 3 37 Thermal 1 | . . . . . . . . . . . . . . . . . . . 1 . . . Impact . | . . . . . . . . . . . . . . . . . . . . . . . Slashing 45 | . . . . 2 16 1 . 10 1 4 11 . . . . . . . . . . . Piercing 40 | . . . . . . . . . . . . . . . . . . . . . 3 37 Sneak Attacks 12 | . . . . 1 4 . . . . 2 1 . . . 1 . . . . . 3 . Combat Hostiles . | . . . . . . . . . . . . . . . . . . . . . . . Follow-up Attacks . | . . . . . . . . . . . . . . . . . . . . . . . Damage Inflicted 28003 | 11 57 25 563 612 812 2710 124 1518 . 403 3112 . 889 159 455 337 2466 441 2940 8787 794 788 Guns 8747 | 11 57 25 563 503 . 557 . . . . 252 . 71 159 . . . 226 2723 3558 42 . Cannons 4899 | . . . . . . 758 124 . . . 305 . 111 . 382 337 . 214 217 1961 490 . Explosions 11825 | . . . . . 231 1360 . 1067 . 243 2427 . 707 . 56 . 2466 . . 3268 . . Melee 2514 | . . . . 109 581 35 . 451 . 160 128 . . . . . . . . . 262 788 Ramming 18 | . . . . . . . . . . . . . . . 17 . . 1 . . . . Kinetic 12084 | 11 57 25 563 503 . 557 124 . . . 463 . 111 . 382 337 . 440 2940 5081 490 . Thermal 3087 | . . . . . . 758 . . . . 94 . 71 159 . . 1525 . . 438 42 . Explosive 8263 | . . . . . 231 1360 . 1067 . 243 2094 . . . . . . . . 3268 . . Electromagnetic 2037 | . . . . . . . . . . . 333 . 707 . 56 . 941 . . . . . Impact . | . . . . . . . . . . . . . . . . . . . . . . . Slashing 1464 | . . . . 109 581 35 . 451 . 160 128 . . . . . . . . . . . Piercing 1050 | . . . . . . . . . . . . . . . . . . . . . 262 788 Highest Corruption 22 | . . . . . . . . . . . . . 2 2 2 2 2 7 22 4 6 5 Average Corruption 7 | . . . . . . . . . . . . . 1 1 2 2 2 5 20 2 5 2 Corruption Purged . | . . . . . . . . . . . . . . . . . . . . . . . Corruption Blocked . | . . . . . . . . . . . . . . . . . . . . . . . Effects 180 | . . . . . . . . . . . . . 15 1 14 3 1 10 104 24 7 1 Message Errors 52 | . . . . . . . . . . . . . 1 . 4 . . 5 34 7 1 . Matter Fused 44 | . . . . . . . . . . . . . 2 . 6 1 1 3 22 7 1 1 Heat Flow Errors 13 | . . . . . . . . . . . . . 2 . 1 . . . 6 4 . . Energy Discharges 13 | . . . . . . . . . . . . . 4 . 1 . . . 6 1 1 . Parts Rejected 2 | . . . . . . . . . . . . . . . . . . 1 1 . . . Data Loss (minor) 23 | . . . . . . . . . . . . . 1 1 1 . . . 15 3 2 . Data Loss (major) 11 | . . . . . . . . . . . . . 4 . 1 1 . . 4 1 . . Misfires 9 | . . . . . . . . . . . . . . . . 1 . . 6 1 1 . Alerts 6 | . . . . . . . . . . . . . 1 . . . . 1 4 . . . Misdirections 1 | . . . . . . . . . . . . . . . . . . . 1 . . . Weapon Failures 6 | . . . . . . . . . . . . . . . . . . . 5 . 1 . Overload Shots 9 | . . . . . . . . . . . 2 . . 5 1 . . 1 . . . . Overflow Damage 574 | . . . . 32 41 34 . 63 . 43 24 . . . 4 . 12 14 . 134 3 170 Projectiles 48 | . . . . . . 7 . . . . . . . . 4 . . 14 . 20 3 . Explosions 189 | . . . . . . 27 . 5 . 7 24 . . . . . 12 . . 114 . . Melee 337 | . . . . 32 41 . . 58 . 36 . . . . . . . . . . . 170 Knockbacks 20 | . . . . . . . 1 . . . 2 . . . 1 1 . 3 . 8 4 . Impact . | . . . . . . . . . . . . . . . . . . . . . . . Kinetic 20 | . . . . . . . 1 . . . 2 . . . 1 1 . 3 . 8 4 . Secondary . | . . . . . . . . . . . . . . . . . . . . . . . Self-Inflicted Damage 469 | . . . . . . 17 . 74 . 89 21 . . . . . . . . 268 . . Shots 10 | . . . . . . 1 . 2 . 2 2 . . . . . . . . 3 . . Rammed 2 | . . . . . . . . . . . . . . . 1 . . 1 . . . . Targets Rammed 2 | . . . . . . . . . . . . . . . 1 . . 1 . . . . Kicked . | . . . . . . . . . . . . . . . . . . . . . . . Crushed . | . . . . . . . . . . . . . . . . . . . . . . . Highest Temperature 328 | . . . 5 10 . 270 4 . . . 328 . 185 240 165 48 4 177 242 233 . . Average Temperature 64 | . . . 3 4 . 77 2 . . . 124 . 43 100 64 17 3 41 65 53 . . Received Heat Transfer 1075 | . . . 9 93 81 144 . . . 45 168 . 57 21 24 9 12 36 53 188 . 135 Effects 2 | . . . . . . . . . . . . . . 1 . . . . 1 . . . Energy Bleed 2 | . . . . . . . . . . . . . . 1 . . . . 1 . . . Siege Activations 14 | . . . . . . . . . . . . . . . . . . . 3 10 1 . Total Turns 273 | . . . . . . . . . . . . . . . . . . . 59 198 16 . Longest Duration 66 | . . . . . . . . . . . . . . . . . . . 32 66 16 . Robots Corrupted 4 | . . . . . . . . . . . 1 . 2 . . . 1 . . . . . Combat Hostiles 4 | . . . . . . . . . . . 1 . 2 . . . 1 . . . . . Parts Fried 10 | . . . . . . . . . . . 4 . 3 . . . 3 . . . . . Impact Corruptions . | . . . . . . . . . . . . . . . . . . . . . . . Robots Melted 1 | . . . . . . . . . . . . . . . . . . . . 1 . . Combat Hostiles 1 | . . . . . . . . . . . . . . . . . . . . 1 . . Parts Melted 10 | . . . 1 . . 1 . . . . . . . . . . 1 . 1 6 . . Heat Transferred 3513 | . . . . . . 1036 . . . . 124 . 111 211 . . 1550 . . 407 74 . Parts Sabotaged 15 | . . . . . . 15 . . . . . . . . . . . . . . . . Parts Stolen . | . . . . . . . . . . . . . . . . . . . . . . . Parts Stripped . | . . . . . . . . . . . . . . . . . . . . . . . Power Chain Reactions 8 | . . . . . . . . . . . . . . . . . 8 . . . . . Missiles Intercepted . | . . . . . . . . . . . . . . . . . . . . . . . Alert | -11 -10 -10 -10 -9 -8 -8 -8 -8 -8 -6 -6 -5 -5 -4 -4 -4 -4 -4 -4 -3 -3 -2 ------- Run | Scr Mat Min Exi Min Mat Gar Sto Gar Rec Fac Gar Fac Gar Fac Ext Cet Arc Hub Gar Res Qua Res Peak Influence 1532 | 5 103 97 . 170 285 1532 811 1050 524 1159 1308 686 1396 991 889 1106 1081 388 631 702 442 362 Initial 1065 | . 3 39 . . 1 185 746 527 472 1065 471 686 480 732 414 497 442 373 92 354 387 72 Average 594 | . 46 90 . 66 134 1041 764 834 464 997 976 686 1045 817 428 866 688 108 379 261 373 233 Maximum Alert Level 4 | . . . . . 1 4 3 3 2 4 4 2 4 3 3 4 3 1 2 3 2 1 Low Security (%) 22 | 100 100 100 . 100 85 1 . . . . . . . . . . . 81 13 44 3 45 Level 1 17 | . . . . . 14 6 . . 21 . . . . . 44 . . 18 47 28 46 54 Level 2 22 | . . . . . . 8 . 14 78 8 17 100 20 . 48 41 68 . 38 27 49 . Level 3 22 | . . . . . . 27 100 85 . 80 51 . 25 100 7 25 31 . . . . . Level 4 15 | . . . . . . 56 . . . 10 31 . 54 . . 32 . . . . . . Level 5 . | . . . . . . . . . . . . . . . . . . . . . . . High Security . | . . . . . . . . . . . . . . . . . . . . . . . Max Security . | . . . . . . . . . . . . . . . . . . . . . . . Squads Dispatched 29 | . 1 . . . . . 2 . . 2 . 2 . 3 1 . . 6 . 8 1 3 Investigation 6 | . . . . . . . 1 . . 1 . . . . . . . . . 4 . . Extermination 4 | . . . . . . . . . . 1 . 1 . 1 . . . . . . . 1 Reinforcement 13 | . 1 . . . . . . . . . . . . 1 . . . 4 . 4 1 2 Assault 3 | . . . . . . . . . . . . 1 . 1 1 . . . . . . . Garrison 3 | . . . . . . . 1 . . . . . . . . . . 2 . . . . Intercept . | . . . . . . . . . . . . . . . . . . . . . . . Searches Triggered 1 | . . . . . . . . . . 1 . . . . . . . . . . . . Construction Impeded 1 | . . . . . . . . . . . . . . . . . . . . 1 . . Haulers Reinforced 1 | . . . . . . . . . . . . . . . . . . . . 1 . . Active Scanning Responses . | . . . . . . . . . . . . . . . . . . . . . . . Cargo Convoy Interrupts . | . . . . . . . . . . . . . . . . . . . . . . . Stealth | -11 -10 -10 -10 -9 -8 -8 -8 -8 -8 -6 -6 -5 -5 -4 -4 -4 -4 -4 -4 -3 -3 -2 --------- Run | Scr Mat Min Exi Min Mat Gar Sto Gar Rec Fac Gar Fac Gar Fac Ext Cet Arc Hub Gar Res Qua Res Distress Signals 14 | . 1 . . . 1 . . . . . . . . 2 2 2 . . . 4 . 2 Communications Jammed 203 | . . . . . . . . . . . . . . 5 6 110 . 4 . 78 . . Distress Signals 203 | . . . . . . . . . . . . . . 5 6 110 . 4 . 78 . . Times Spotted 421 | . 7 3 14 9 10 44 1 10 6 13 36 . 23 23 25 18 20 15 27 68 8 41 Peak Tracking Total 20 | . 4 2 5 4 4 5 1 8 4 5 6 2 7 4 4 5 10 2 5 14 3 20 Tactical Retreats 25 | . . . 2 . . 8 . . . . 1 . 3 . . . . . 3 4 . 4 Traps | -11 -10 -10 -10 -9 -8 -8 -8 -8 -8 -6 -6 -5 -5 -4 -4 -4 -4 -4 -4 -3 -3 -2 ------- Run | Scr Mat Min Exi Min Mat Gar Sto Gar Rec Fac Gar Fac Gar Fac Ext Cet Arc Hub Gar Res Qua Res Traps Triggered 31 | . . . . . . 7 . 6 . . 10 . 2 . . . . . 3 2 . 1 Indirectly . | . . . . . . . . . . . . . . . . . . . . . . . Trap Hack Attempts . | . . . . . . . . . . . . . . . . . . . . . . . Triggered . | . . . . . . . . . . . . . . . . . . . . . . . Disarmed 3 | . . . . . . . . . . . . . . . . . . 3 . . . . Reprogrammed . | . . . . . . . . . . . . . . . . . . . . . . . Reused . | . . . . . . . . . . . . . . . . . . . . . . . Traps Extracted . | . . . . . . . . . . . . . . . . . . . . . . . Installed . | . . . . . . . . . . . . . . . . . . . . . . . Triggered . | . . . . . . . . . . . . . . . . . . . . . . . Power Sources Rigged 3 | . . . 2 . . 1 . . . . . . . . . . . . . . . . Exploded 3 | . . . 2 . . 1 . . . . . . . . . . . . . . . . Machines | -11 -10 -10 -10 -9 -8 -8 -8 -8 -8 -6 -6 -5 -5 -4 -4 -4 -4 -4 -4 -3 -3 -2 ---------- Run | Scr Mat Min Exi Min Mat Gar Sto Gar Rec Fac Gar Fac Gar Fac Ext Cet Arc Hub Gar Res Qua Res Machines Disabled 40 | . . . 3 . 1 9 . 4 1 . 6 . 5 . 1 . 4 . 5 1 . . Max in Single Turn 2 | . . . 1 . 1 1 . 1 . . 1 . 1 . 1 . 2 . 1 1 . . Garrison Access 1 | . . . . . . . . . . . . . . . . . . . . 1 . . Garrison Relay 20 | . . . . . . 5 . 3 . . 4 . 4 . . . . . 4 . . . Machines Sabotaged . | . . . . . . . . . . . . . . . . . . . . . . . Garrisons Compromised . | . . . . . . . . . . . . . . . . . . . . . . . Overloaded Fab Kills . | . . . . . . . . . . . . . . . . . . . . . . . Hacking | -11 -10 -10 -10 -9 -8 -8 -8 -8 -8 -6 -6 -5 -5 -4 -4 -4 -4 -4 -4 -3 -3 -2 --------- Run | Scr Mat Min Exi Min Mat Gar Sto Gar Rec Fac Gar Fac Gar Fac Ext Cet Arc Hub Gar Res Qua Res Machines Accessed 36 | . 1 . . . 2 . 1 . 2 3 . 2 . 2 12 1 . 4 . 4 2 . Terminals 28 | . 1 . . . 1 . . . 2 1 . . . 2 12 1 . 3 . 3 2 . Fabricators 1 | . . . . . . . . . . . . 1 . . . . . . . . . . Repair Stations 1 | . . . . . . . . . . 1 . . . . . . . . . . . . Recycling Units . | . . . . . . . . . . . . . . . . . . . . . . . Scanalyzers . | . . . . . . . . . . . . . . . . . . . . . . . Garrison Access 6 | . . . . . 1 . 1 . . 1 . 1 . . . . . 1 . 1 . . Total Hacks 82 | . 2 . . . 5 . 3 . 4 7 . 2 . 5 31 1 . 9 . 4 9 . Successful 40 | . 2 . . . 2 . 2 . 1 6 . 1 . 3 14 1 . 3 . 1 4 . Failed 42 | . . . . . 3 . 1 . 3 1 . 1 . 2 17 . . 6 . 3 5 . Catastrophic 7 | . . . . . . . 1 . 1 . . . . 1 2 . . . . 1 1 . Database Lockouts . | . . . . . . . . . . . . . . . . . . . . . . . Manual 53 | . . . 1 . 3 . 2 . 4 5 . 1 . 4 15 1 . 6 . 2 9 . Terminals 64 | . 2 . . . 2 . . . 4 1 . . . 5 31 1 . 6 . 3 9 . Fabricators 1 | . . . . . . . . . . . . 1 . . . . . . . . . . Repair Stations 3 | . . . . . . . . . . 3 . . . . . . . . . . . . Recycling Units . | . . . . . . . . . . . . . . . . . . . . . . . Scanalyzers . | . . . . . . . . . . . . . . . . . . . . . . . Garrison Access 14 | . . . . . 3 . 3 . . 3 . 1 . . . . . 3 . 1 . . Terminal Hacks 17 | . 2 . . . 1 . . . 1 . . . . 1 9 1 . 1 . . 1 . Open Door 6 | . . . . . . . . . . . . . . . 5 1 . . . . . . Unreport Threat 5 | . 1 . . . . . . . 1 . . . . . 2 . . . . . 1 . Locate Traps 3 | . . . . . 1 . . . . . . . . 1 1 . . . . . . . Disarm Traps 1 | . . . . . . . . . . . . . . . . . . 1 . . . . Zone Layout 2 | . 1 . . . . . . . . . . . . . 1 . . . . . . . Fabricator Hacks . | . . . . . . . . . . . . . . . . . . . . . . . Repair Station Hacks 2 | . . . . . . . . . . 2 . . . . . . . . . . . . Scan Component 1 | . . . . . . . . . . 1 . . . . . . . . . . . . Repair 1 | . . . . . . . . . . 1 . . . . . . . . . . . . Recycling Unit Hacks . | . . . . . . . . . . . . . . . . . . . . . . . Scanalyzer . | . . . . . . . . . . . . . . . . . . . . . . . Garrison Access Hacks 6 | . . . . . 1 . 1 . . 1 . 1 . . . . . 1 . 1 . . Unlock Access 5 | . . . . . 1 . 1 . . 1 . 1 . . . . . 1 . . . . Seal Access 1 | . . . . . . . . . . . . . . . . . . . . 1 . . Unauthorized Hacks 15 | . . . . . . . 1 . . 3 . . . 2 5 . . 1 . . 3 . Terminals 12 | . . . . . . . . . . 1 . . . 2 5 . . 1 . . 3 . Track 1 | . . . . . . . . . . . . . . . . . . . . . 1 . Botnet 9 | . . . . . . . . . . 1 . . . 2 4 . . 1 . . 1 . Operators 2 | . . . . . . . . . . . . . . . 1 . . . . . 1 . Fabricators . | . . . . . . . . . . . . . . . . . . . . . . . Repair Stations 1 | . . . . . . . . . . 1 . . . . . . . . . . . . Mechanics 1 | . . . . . . . . . . 1 . . . . . . . . . . . . Recycling Units . | . . . . . . . . . . . . . . . . . . . . . . . Scanalyzers . | . . . . . . . . . . . . . . . . . . . . . . . Garrison Access 2 | . . . . . . . 1 . . 1 . . . . . . . . . . . . Reprogram 2 | . . . . . . . 1 . . 1 . . . . . . . . . . . . Data Cores Recovered . | . . . . . . . . . . . . . . . . . . . . . . . Used . | . . . . . . . . . . . . . . . . . . . . . . . Hacking Detections 27 | . . . . . 2 . 1 . 2 2 . 1 . 2 8 . . 4 . 3 2 . Full Trace Events . | . . . . . . . . . . . . . . . . . . . . . . . Feedback Events . | . . . . . . . . . . . . . . . . . . . . . . . Feedback Blocked . | . . . . . . . . . . . . . . . . . . . . . . . Robot Schematics Acquired . | . . . . . . . . . . . . . . . . . . . . . . . Robots Built . | . . . . . . . . . . . . . . . . . . . . . . . Authchips . | . . . . . . . . . . . . . . . . . . . . . . . Time . | . . . . . . . . . . . . . . . . . . . . . . . Total Robot Build Rating . | . . . . . . . . . . . . . . . . . . . . . . . Part Schematics Acquired . | . . . . . . . . . . . . . . . . . . . . . . . Parts Built . | . . . . . . . . . . . . . . . . . . . . . . . Authchips . | . . . . . . . . . . . . . . . . . . . . . . . Time . | . . . . . . . . . . . . . . . . . . . . . . . Total Part Build Rating . | . . . . . . . . . . . . . . . . . . . . . . . Parts Repaired 1 | . . . . . . . . . . 1 . . . . . . . . . . . . Time 44 | . . . . . . . . . . 44 . . . . . . . . . . . . Parts Recycled . | . . . . . . . . . . . . . . . . . . . . . . . Recycled Matter . | . . . . . . . . . . . . . . . . . . . . . . . Retrieved Matter . | . . . . . . . . . . . . . . . . . . . . . . . Retrieved Components . | . . . . . . . . . . . . . . . . . . . . . . . Parts Scanalyzed . | . . . . . . . . . . . . . . . . . . . . . . . Part Schematics Acquired . | . . . . . . . . . . . . . . . . . . . . . . . Parts Damaged . | . . . . . . . . . . . . . . . . . . . . . . . Bothacking | -11 -10 -10 -10 -9 -8 -8 -8 -8 -8 -6 -6 -5 -5 -4 -4 -4 -4 -4 -4 -3 -3 -2 ------------ Run | Scr Mat Min Exi Min Mat Gar Sto Gar Rec Fac Gar Fac Gar Fac Ext Cet Arc Hub Gar Res Qua Res Used RIF Installer 5 | . . . . . . 1 . 1 . . 1 . 1 . . . . . 1 . . . Hotswap 1 | . . . . . . . . . . . 1 . . . . . . . . . . . Command Fork 1 | . . . . . . . . . . . . . 1 . . . . . . . . . Robot Detection 1 | . . . . . . . . 1 . . . . . . . . . . . . . . Program Shield 1 | . . . . . . . . . . . . . . . . . . . 1 . . . Robots Hacked 78 | . . . . . . . . . . 9 11 . 6 10 10 1 1 9 9 12 . . Non-combat 19 | . . . . . . . . . . 1 . . . 1 5 . . 5 . 7 . . Combat 59 | . . . . . . . . . . 8 11 . 6 9 5 1 1 4 9 5 . . Robot Hacks Applied 86 | . . . . . . . . . . 10 11 . 6 10 10 1 1 14 9 14 . . deconstruct_machine 1 | . . . . . . . . . . . . . . 1 . . . . . . . . hold_bot 2 | . . . . . . . . . . 1 . . . . . . . . . 1 . . map_walls 1 | . . . . . . . . . . . . . . . 1 . . . . . . . drop_inventory 6 | . . . . . . . . . . . . . . . 2 . . 1 . 3 . . purge_threat 6 | . . . . . . . . . . . . . . . . . . 3 . 3 . . locate_traps 1 | . . . . . . . . . . . . . . . . . . 1 . . . . block_reporting 1 | . . . . . . . . . . . . . . . . . . 1 . . . . find_shortcuts 1 | . . . . . . . . . . . . . . . . . . 1 . . . . link_fov 3 | . . . . . . . . . . . . . . . 2 . . 1 . . . . scatter_targeting 1 | . . . . . . . . . . . . . . . . . . . 1 . . . amplify_resonance 3 | . . . . . . . . . . . . . . . . 1 1 . . 1 . . disable_weapons 1 | . . . . . . . . . . . . . . . . . . . 1 . . . go_dormant 1 | . . . . . . . . . . 1 . . . . . . . . . . . . overwrite_iff 2 | . . . . . . . . . . . . . . . . . . 1 . 1 . . streamctrl_high 6 | . . . . . . . . . . 3 2 . . . . . . 1 . . . . formatsys_low 2 | . . . . . . . . . . . . . . . . . . 2 . . . . formatsys_high 48 | . . . . . . . . . . 5 9 . 6 9 5 . . 2 7 5 . . Relay Couplers Released 79 | . . . . . . 20 . 10 . . 12 . 17 . . . . . 17 3 . . Machine Destruction 79 | . . . . . . 20 . 10 . . 12 . 17 . . . . . 17 3 . . Attached 26 | . . . . . . . . . . 7 3 . 1 3 . . . 1 6 4 1 . Fabnet Peak Effective % . | . . . . . . . . . . . . . . . . . . . . . . . Robots Rewired 9 | . . . . . . . . . . . . . . . 3 . . . 6 . . . Allies Hacked 2 | . . . . . . . . . . . . . 1 1 . . . . . . . . Hacks Repelled . | . . . . . . . . . . . . . . . . . . . . . . . Allies | -11 -10 -10 -10 -9 -8 -8 -8 -8 -8 -6 -6 -5 -5 -4 -4 -4 -4 -4 -4 -3 -3 -2 -------- Run | Scr Mat Min Exi Min Mat Gar Sto Gar Rec Fac Gar Fac Gar Fac Ext Cet Arc Hub Gar Res Qua Res Total Allies 93 | . . 5 . . . . 2 . . 9 11 . 6 11 16 5 . 8 14 6 . . Largest Group 18 | . . 5 5 . . . 2 2 1 2 8 7 8 7 18 18 15 6 6 7 . . Highest-Rated Group 1055 | . . 85 85 . . . 32 32 16 67 259 230 279 415 955 1055 952 200 209 348 . . Highest-Rated Ally 159 | . . 31 31 . . . 16 16 16 41 47 47 49 137 159 159 131 68 49 64 . . Total Orders 16 | . . . 1 . . . . . . . 5 . 2 . . 8 . . . . . . STAY 11 | . . . 1 . . . . . . . 3 . 1 . . 6 . . . . . . FOLLOW 5 | . . . . . . . . . . . 2 . 1 . . 2 . . . . . . Ally Attacks 637 | . . 3 57 . . 13 . 11 30 9 21 . 75 57 142 82 53 18 27 39 . . Total Damage 20198 | . . 50 1882 . . 634 . 104 122 76 403 . 2375 2066 4837 2447 2513 445 871 1373 . . Kills 132 | . . 2 8 . . 7 . 3 4 . 4 . 16 14 27 18 12 4 5 8 . . Allies Corrupted 5 | . . . . . . . . . . . . . . 1 . . . 1 2 1 . . Allies Melted 1 | . . . . . . . . . . 1 . . . . . . . . . . . . Turrets Deployed 4 | . . . 3 . . 1 . . . . . . . . . . . . . . . . Intel | -11 -10 -10 -10 -9 -8 -8 -8 -8 -8 -6 -6 -5 -5 -4 -4 -4 -4 -4 -4 -3 -3 -2 ------- Run | Scr Mat Min Exi Min Mat Gar Sto Gar Rec Fac Gar Fac Gar Fac Ext Cet Arc Hub Gar Res Qua Res Robot Analysis Total . | . . . . . . . . . . . . . . . . . . . . . . . Derelict Logs Recovered 2 | . . . . 2 . . . . . . . . . . . . . . . . . . Drone Launches . | . . . . . . . . . . . . . . . . . . . . . . . Drone Recoveries . | . . . . . . . . . . . . . . . . . . . . . . . Exploration | -11 -10 -10 -10 -9 -8 -8 -8 -8 -8 -6 -6 -5 -5 -4 -4 -4 -4 -4 -4 -3 -3 -2 ------------- Run | Scr Mat Min Exi Min Mat Gar Sto Gar Rec Fac Gar Fac Gar Fac Ext Cet Arc Hub Gar Res Qua Res Turns Passed 19154 | 54 178 340 2008 981 350 2207 114 1088 223 528 1658 306 1202 504 1101 368 114 386 2129 2393 416 506 Spaces Moved 11410 | 46 129 207 1171 614 180 1396 72 874 211 363 1089 248 723 274 607 196 61 193 906 1108 256 486 Core 100 | 1 . . . . . 2 . . . . . . . . . . . . . 22 30 45 Treads 5044 | . 21 207 1003 221 88 20 . . . . . . 524 274 607 196 61 193 797 663 169 . Legs 1960 | . . . 168 393 . . . . . . 952 248 199 . . . . . . . . . Wheels 3808 | 45 108 . . . 92 1374 72 874 211 363 137 . . . . . . . 109 423 . . Hover 206 | . . . . . . . . . . . . . . . . . . . . . . 206 Flight 292 | . . . . . . . . . . . . . . . . . . . . . 57 235 Fastest Speed 35 | 50 90 160 140 140 110 95 120 105 105 105 105 120 120 160 160 160 160 160 135 50 45 35 Average Speed 139 | 90 101 160 157 147 157 124 120 110 105 114 123 120 151 160 160 160 160 160 186 162 128 55 Slowest Speed 600 | 100 160 160 210 240 240 600 120 120 105 120 190 120 260 160 160 160 160 160 240 305 170 150 Overloaded Moves . | . . . . . . . . . . . . . . . . . . . . . . . Propulsion Burnouts . | . . . . . . . . . . . . . . . . . . . . . . . Robots Hopped 3 | . . . . . . 2 . . . . . . . . . . . . . . . 1 Cave-ins Triggered . | . . . . . . . . . . . . . . . . . . . . . . . Exploration Rate (%) 49 | 4 27 42 89 94 18 70 14 77 72 10 84 8 89 12 72 66 82 22 84 34 34 23 Regions Visited 22 Branch Regions 10 Pre-discovered Areas . | . . . . . . . . . . . . . . . . . . . . . . . Known Exits Taken 5 | . . . . . 1 . 1 . . 1 . 1 . . . . . 1 . . . . Unknown Exits Taken 12 | 1 1 1 1 1 . . . . 1 . . . . 1 1 1 1 . . 1 1 . Scrap Searched 3 | . . . . 3 . . . . . . . . . . . . . . . . . . Spaces Dug 35 | . . . . . 2 . . 3 . 10 8 . . 1 . . . 3 . . . 8 Terrain Destroyed 551 | . . . . . 22 133 . 37 . 46 172 . . 2 1 8 8 7 7 100 . 8 Melee 12 | . . . . . 2 . . . . 1 1 . . . . . . . . . . 8 Projectile 61 | . . . . . . 1 . . . . 5 . . 2 1 8 1 7 7 29 . . AOE 477 | . . . . . 20 132 . 37 . 45 166 . . . . . 7 . . 70 . . Terrain Rammed . | . . . . . . . . . . . . . . . . . . . . . . . Walls Destroyed . | . . . . . . . . . . . . . . . . . . . . . . . Machines Disabled . | . . . . . . . . . . . . . . . . . . . . . . . Actions | -11 -10 -10 -10 -9 -8 -8 -8 -8 -8 -6 -6 -5 -5 -4 -4 -4 -4 -4 -4 -3 -3 -2 --------- Run | Scr Mat Min Exi Min Mat Gar Sto Gar Rec Fac Gar Fac Gar Fac Ext Cet Arc Hub Gar Res Qua Res Total 13619 | 55 162 214 1287 658 219 1691 92 972 211 455 1314 255 803 324 717 234 70 241 1205 1483 318 639 Wait 392 | . 5 3 10 7 3 24 9 10 . 47 36 2 8 5 36 8 . . 46 55 5 73 Move 11385 | 45 128 206 1170 613 180 1391 71 873 210 362 1088 248 722 273 606 195 60 193 905 1107 255 484 Hop 3 | . . . . . . 2 . . . . . . . . . . . . . . . 1 Pick Up 254 | 4 9 3 25 2 4 28 2 11 . 7 23 4 17 4 13 8 . 7 43 25 8 7 Fast Attach 147 | 4 2 . 7 6 7 21 1 . . 2 3 1 3 4 3 2 . 1 9 47 11 13 Attach 78 | 1 . . . 1 1 5 . 1 . 5 12 . 1 3 1 . 1 3 11 14 9 9 Detach 25 | . . . 1 . 1 2 . . . 1 1 . . 1 1 . . . 2 7 2 6 Swap 100 | . 2 . 6 1 . 9 2 . . 4 9 . 9 4 8 5 1 5 12 20 1 2 Drop 182 | . 6 1 34 5 4 11 1 4 . 3 3 . 10 3 9 6 . . 14 51 10 7 Fire 738 | 1 10 1 32 21 3 140 6 13 . 19 67 . 32 27 35 10 8 32 110 157 14 . Melee 88 | . . . . 2 16 1 . 10 1 4 11 . . . 2 . . . 1 . 3 37 Ram . | . . . . . . . . . . . . . . . . . . . . . . . Kick . | . . . . . . . . . . . . . . . . . . . . . . . Crush 1 | . . . . . . . . . . . . . . . 1 . . . . . . . Escape Stasis 175 | . . . . . . 56 . 50 . . 61 . . . 2 . . . 6 . . . Rewire 48 | . . . . . . . . . . 1 . . 1 . . . . . 46 . . . Trap 3 | . . . 2 . . 1 . . . . . . . . . . . . . . . . Miscellaneous . | . . . . . . . . . . . . . . . . . . . . . . . Route ------- -11/Scrapyard -10/Materials -10/Mines (discovered 2 exits: [*Mat] / *Exi) -10/Exiles -9/Mines (discovered 2 exits: *Mat x2) -8/Materials (discovered 2 exits: *Sto / Gar) -8/Garrison (discovered 3 exits: *Sto x3) -8/Storage -8/Garrison (discovered 3 exits: *Rec x3) -8/Recycling -6/Factory -6/Garrison (discovered 3 exits: *Fac x3) -5/Factory -5/Garrison (discovered 3 exits: *Fac x3) -4/Factory (discovered 2 exits: *Res / *Ext) -4/Extension (discovered 2 exits: *Res / *Cet) -4/Cetus (discovered 2 exits: *Res / [*Arc]) -4/Archives -4/Hub_04(d) -4/Garrison (discovered 3 exits: *Res x3) -3/Research (discovered 3 exits: [*Res] / *Qua x2) -3/Quarantine -2/Research History --------- Turn | Location | Event 23 | -11/Scrapyard | Discovered new exit (range 16) 55 | -11/Scrapyard | Entered Materials 179 | -10/Materials | Discovered new exit (range 15) 233 | -10/Materials | Entered Mines 237 | -10/Mines | Assisted by bots powering up and referring to "LRC-V3" 302 | -10/Mines | Build established: Mutant 371 | -10/Mines | Found a damaged Exp. Sensor Array with a note attached 375 | -10/Mines | Found Prototype Device 446 | -10/Mines | Discovered new exit (range 6) 560 | -10/Mines | Deemed a non-threat by the Exiles lab entrance 562 | -10/Mines | Discovered new exit (range 5) 573 | -10/Mines | Entered Exiles 573 | -10/Exiles | Accompanied by 5 allies 603 | -10/Exiles | Led the pair of lost Derelicts to a safe place 615 | -10/Exiles | Met 8R-AWN 661 | -10/Exiles | Met EX-HEX 773 | -10/Exiles | Met EX-BIN 795 | -10/Exiles | Aligned with FarCom system 797 | -10/Exiles | Given EX-Vault access code 835 | -10/Exiles | Opened EX-Vault 841 | -10/Exiles | Found Deploy-a-Sentry 844 | -10/Exiles | Found Deploy-a-Sentry 847 | -10/Exiles | Found Deploy-a-Sentry 851 | -10/Exiles | Found Prototype Device 860 | -10/Exiles | Found Prototype Storage 896 | -10/Exiles | Warned to stay clear of 0b10 Research branches 939 | -10/Exiles | DAS Turret deployed 941 | -10/Exiles | DAS Turret deployed 983 | -10/Exiles | Met EX-DEC 987 | -10/Exiles | DAS Turret deployed 1016 | -10/Exiles | Identified PSU Rigger 1523 | -10/Exiles | Attacked by the Exiles 1528 | -10/Exiles | Destroyed EX-HEX 1530 | -10/Exiles | Allies destroyed EX-BIN 1563 | -10/Exiles | Destroyed 8R-AWN 1665 | -10/Exiles | Destroyed EX-DEC 2309 | -10/Exiles | Found Deploy-a-Sentry 2475 | -10/Exiles | Identified Exp. Sensor Array 2566 | -10/Exiles | Discovered new exit (range 14) 2581 | -10/Exiles | Stole three prototypes: Lightpack 2.0, PSU Rigger, Deploy-a-Sentry 2581 | -10/Exiles | Entered Mines 2592 | -9/Mines | Met a Derelict bent on vengeance 2643 | -9/Mines | Discovered new exit (range 9) 2876 | -9/Mines | Received a Rocket Launcher from a helpful Derelict 2904 | -9/Mines | Build established: Scavenger-Mutant 2961 | -9/Mines | Learned location of 1 exit from Lower Caves 3144 | -9/Mines | Discovered new exit (range 5) 3316 | -9/Mines | Learned 4 Materials zone layouts 3473 | -9/Mines | Build established: Mutant 3562 | -9/Mines | Entered Materials 3562 | -8/Materials | Evolved 4 slots: Utility x4 3563 | -8/Materials | Identified exit to Storage 3912 | -8/Materials | Identified exit to Garrison 3912 | -8/Materials | Entered Garrison 3918 | -8/Garrison | Installed Relay Interface Framework 3950 | -8/Garrison | Build established: Scavenger-Mutant 3975 | -8/Garrison | DAS Turret deployed 4054 | -8/Garrison | Triggered checkpoint 4088 | -8/Garrison | Triggered checkpoint 4114 | -8/Garrison | Triggered checkpoint 4162 | -8/Garrison | Triggered checkpoint 4202 | -8/Garrison | Garrison Relay disabled 4251 | -8/Garrison | Triggered checkpoint 4279 | -8/Garrison | Build established: Mutant 4288 | -8/Garrison | Triggered checkpoint 4591 | -8/Garrison | Discovered exit to Storage (range 14) 4650 | -8/Garrison | Triggered checkpoint 4698 | -8/Garrison | Garrison Relay disabled 4812 | -8/Garrison | Garrison Relay disabled 4923 | -8/Garrison | Discovered exit to Storage (range 10) 5061 | -8/Garrison | Build established: Scavenger-Mutant 5186 | -8/Garrison | Triggered checkpoint 5230 | -8/Garrison | Destroyed 8 combat bots 5528 | -8/Garrison | Identified Lightpack 2.0 5814 | -8/Garrison | Build established: Hauler-Mutant 6017 | -8/Garrison | Discovered exit to Storage (range 10) 6034 | -8/Garrison | Triggered checkpoint 6066 | -8/Garrison | Garrison Relay disabled 6119 | -8/Garrison | Entered Storage 6179 | -8/Storage | Identified exit to Garrison 6228 | -8/Storage | Garrison activated, responded to threat 6233 | -8/Storage | Entered Garrison 6233 | -8/Garrison | Accompanied by 2 allies 6268 | -8/Garrison | Triggered checkpoint 6288 | -8/Garrison | Triggered checkpoint 6341 | -8/Garrison | Discovered new exit (range 10) 6409 | -8/Garrison | Destroyed 7 combat bots 6414 | -8/Garrison | Triggered checkpoint 6451 | -8/Garrison | Discovered new exit (range 15) 6536 | -8/Garrison | Triggered checkpoint 6624 | -8/Garrison | Discovered new exit (range 12) 6647 | -8/Garrison | Expanded RIF knowledge: Robot Detection 6821 | -8/Garrison | Garrison Relay disabled 6832 | -8/Garrison | Triggered checkpoint 6964 | -8/Garrison | Garrison Relay disabled 7170 | -8/Garrison | Triggered checkpoint 7197 | -8/Garrison | Garrison Relay disabled 7321 | -8/Garrison | Entered Recycling 7321 | -8/Recycling | Accompanied by 1 ally 7366 | -8/Recycling | Spotter reported a threat 7367 | -8/Recycling | Spotter reported a threat 7402 | -8/Recycling | Spotter reported a threat 7402 | -8/Recycling | Spotter reported a threat 7402 | -8/Recycling | Spotter reported a threat 7420 | -8/Recycling | Spotter reported a threat 7437 | -8/Recycling | Spotter reported a threat 7443 | -8/Recycling | Spotter reported a threat 7445 | -8/Recycling | Spotter reported a threat 7455 | -8/Recycling | Spotter reported a threat 7455 | -8/Recycling | Spotter reported a threat 7460 | -8/Recycling | Spotter reported a threat 7488 | -8/Recycling | Spotter reported a threat 7490 | -8/Recycling | Spotter reported a threat 7496 | -8/Recycling | Spotter reported a threat 7496 | -8/Recycling | Spotter reported a threat 7508 | -8/Recycling | Spotter reported a threat 7534 | -8/Recycling | Spotter reported a threat 7539 | -8/Recycling | Discovered new exit (range 6) 7544 | -8/Recycling | Entered Factory 7544 | -6/Factory | Evolved 4 slots: Utility x4 7628 | -6/Factory | Spotted B-75 Beast 7806 | -6/Factory | Identified exit to Garrison 7894 | -6/Factory | Search patrols dispatched 7940 | -6/Factory | Repaired Remote Datajack 8072 | -6/Factory | Entered Garrison 8072 | -6/Garrison | Accompanied by 1 ally 8204 | -6/Garrison | Triggered checkpoint 8228 | -6/Garrison | Garrison Relay disabled 8232 | -6/Garrison | Build established: Bothacker-Mutant 8291 | -6/Garrison | Spotted B-75 Beast 8341 | -6/Garrison | Triggered checkpoint 8341 | -6/Garrison | Triggered checkpoint 8347 | -6/Garrison | Triggered checkpoint 8375 | -6/Garrison | Destroyed B-75 Beast 8396 | -6/Garrison | Destroyed 7 combat bots 8483 | -6/Garrison | Triggered checkpoint 8576 | -6/Garrison | Lost 6 parts (1n2u3w) 8606 | -6/Garrison | Discovered new exit (range 12) 8729 | -6/Garrison | Lost 3 parts (2p1w) 8768 | -6/Garrison | Discovered new exit (range 12) 8874 | -6/Garrison | Triggered checkpoint 8941 | -6/Garrison | Garrison Relay disabled 9005 | -6/Garrison | Discovered new exit (range 14) 9031 | -6/Garrison | Expanded RIF knowledge: Hotswap 9202 | -6/Garrison | Triggered checkpoint 9256 | -6/Garrison | Triggered checkpoint 9392 | -6/Garrison | Triggered checkpoint 9411 | -6/Garrison | Garrison Relay disabled 9730 | -6/Garrison | Entered Factory 9730 | -5/Factory | Accompanied by 7 allies 9730 | -5/Factory | Evolved 2 slots: Utility x2 10030 | -5/Factory | First assault squad dispatched 10036 | -5/Factory | Identified exit to Garrison 10036 | -5/Factory | Entered Garrison 10036 | -5/Garrison | Accompanied by 7 allies 10130 | -5/Garrison | Triggered checkpoint 10152 | -5/Garrison | Garrison Relay disabled 10259 | -5/Garrison | Triggered checkpoint 10303 | -5/Garrison | Spotted B-75 Beast 10324 | -5/Garrison | Destroyed B-75 Beast 10392 | -5/Garrison | P-70 Sage assimilated allied Guardian 5c 10439 | -5/Garrison | Triggered checkpoint 10458 | -5/Garrison | Triggered checkpoint 10507 | -5/Garrison | Discovered new exit (range 14) 10644 | -5/Garrison | Triggered checkpoint 10673 | -5/Garrison | Garrison Relay disabled 10742 | -5/Garrison | Discovered new exit (range 15) 10834 | -5/Garrison | Triggered checkpoint 10889 | -5/Garrison | Discovered new exit (range 9) 10912 | -5/Garrison | Expanded RIF knowledge: Command Fork 10976 | -5/Garrison | Triggered checkpoint 10992 | -5/Garrison | Garrison Relay disabled 11120 | -5/Garrison | Triggered checkpoint 11160 | -5/Garrison | Garrison Relay disabled 11213 | -5/Garrison | Build established: Botlord-Mutant 11238 | -5/Garrison | Entered Factory 11238 | -4/Factory | Accompanied by 3 allies 11238 | -4/Factory | Evolved 2 slots: Utility x2 11488 | -4/Factory | First assault squad dispatched 11584 | -4/Factory | Discovered new exit (range 7) 11597 | -4/Factory | Identified exit to Research 11716 | -4/Factory | Discovered new exit (range 15) 11742 | -4/Factory | Entered Extension 11742 | -4/Extension | Accompanied by 4 allies 11805 | -4/Extension | Rescued a captive Derelict 11806 | -4/Extension | Rescued a captive Derelict 11811 | -4/Extension | Rescued A7 11829 | -4/Extension | Rescued a captive Derelict 11970 | -4/Extension | Rescued a captive Derelict 11971 | -4/Extension | Rescued a captive Derelict 12084 | -4/Extension | Rescued a captive Derelict 12147 | -4/Extension | Rescued a captive Derelict 12533 | -4/Extension | Spotted B-86 Titan 12544 | -4/Extension | Allies destroyed B-86 Titan 12555 | -4/Extension | Spotted B-86 Titan 12564 | -4/Extension | Allies destroyed B-86 Titan 12742 | -4/Extension | First assault squad dispatched 12798 | -4/Extension | Discovered new exit (range 16) 12799 | -4/Extension | Discovered exit to Research (range 15) 12843 | -4/Extension | Entered Cetus 12843 | -4/Cetus | Accompanied by 17 allies (A7) 12848 | -4/Cetus | Acquired a Cetus Manufacturing Module code from A7 12880 | -4/Cetus | Spotted Cetus Guard 12880 | -4/Cetus | Spotted Cetus Guard 12880 | -4/Cetus | Spotted Cetus Guard 12881 | -4/Cetus | Spotted Cetus Guard 12890 | -4/Cetus | Allies destroyed Cetus Guard 12891 | -4/Cetus | Allies destroyed Cetus Guard 12893 | -4/Cetus | Allies destroyed Cetus Guard 12897 | -4/Cetus | Allies destroyed Cetus Guard 12988 | -4/Cetus | Started Cetus Manufacturing Module 13001 | -4/Cetus | Escorted A7 to Cetus Mainframe 13013 | -4/Cetus | Manufactured an Enhanced Grunt 13020 | -4/Cetus | Discovered new exit (range 16) 13038 | -4/Cetus | Manufactured an Enhanced Grunt 13063 | -4/Cetus | Manufactured an Enhanced Grunt 13063 | -4/Cetus | Spotted Cetus Guard 13066 | -4/Cetus | Spotted Cetus Guard 13067 | -4/Cetus | Spotted Cetus Guard 13067 | -4/Cetus | Spotted Cetus Guard 13071 | -4/Cetus | Allies destroyed Cetus Guard 13076 | -4/Cetus | Allies destroyed Cetus Guard 13077 | -4/Cetus | Extracted ID and sensor layout for unrecognized location from A7's data core 13081 | -4/Cetus | Allies destroyed Cetus Guard 13085 | -4/Cetus | Discovered exit to Research (range 16) 13086 | -4/Cetus | Destroyed Cetus Guard 13088 | -4/Cetus | Manufactured an Enhanced Grunt 13104 | -4/Cetus | Met Revision 17 13113 | -4/Cetus | Manufactured an Enhanced Grunt 13211 | -4/Cetus | Entered Archives 13211 | -4/Archives | Accompanied by 15 allies 13231 | -4/Archives | Met Zhirov 13237 | -4/Archives | Reinforcements dispatched to Archives 13277 | -4/Archives | Discovered new exit (range 16) 13282 | -4/Archives | Reinforcements dispatched to Archives 13284 | -4/Archives | Zhirov warped through subspace 13302 | -4/Archives | Zhirov detonated Archives 13322 | -4/Archives | Destroyed 8 combat bots 13325 | -4/Archives | Entered Hub_04(d) 13605 | -4/Hub_04(d) | Garrison activated, responded to threat 13696 | -4/Hub_04(d) | Identified exit to Garrison 13711 | -4/Hub_04(d) | Entered Garrison 13711 | -4/Garrison | Accompanied by 3 allies 13745 | -4/Garrison | Triggered checkpoint 13764 | -4/Garrison | System corruption reached 10% 13827 | -4/Garrison | Garrison Relay disabled 13889 | -4/Garrison | Spotted B-86 Titan 13899 | -4/Garrison | Triggered checkpoint 14024 | -4/Garrison | Triggered checkpoint 14056 | -4/Garrison | Triggered checkpoint 14100 | -4/Garrison | Discovered exit to Research (range 12) 14160 | -4/Garrison | Destroyed B-86 Titan 14244 | -4/Garrison | Triggered checkpoint 14296 | -4/Garrison | Garrison Relay disabled 14672 | -4/Garrison | Triggered checkpoint 14672 | -4/Garrison | P-70 Sage assimilated allied Imp 7a 14680 | -4/Garrison | Triggered checkpoint 14711 | -4/Garrison | Lost 3 parts (3u) 14738 | -4/Garrison | Discovered exit to Research (range 13) 14740 | -4/Garrison | Triggered checkpoint 14996 | -4/Garrison | Build established: Bothacker-Mutant 15122 | -4/Garrison | Triggered checkpoint 15200 | -4/Garrison | Triggered checkpoint 15218 | -4/Garrison | Discovered exit to Research (range 14) 15263 | -4/Garrison | Expanded RIF knowledge: Program Shield 15358 | -4/Garrison | Garrison Relay disabled 15743 | -4/Garrison | Build established: Botlord-Mutant 15780 | -4/Garrison | Garrison Relay disabled 15840 | -4/Garrison | Entered Research 15840 | -3/Research | Accompanied by 5 allies 15840 | -3/Research | Evolved 2 slots: Utility x1, Weapon x1 15992 | -3/Research | Discovered new exit (range 9) 16040 | -3/Research | Revision forces began assault on 0b10 16052 | -3/Research | Discovered new exit (range 11) 16125 | -3/Research | Found Prototype Device 16125 | -3/Research | Identified Exp. Shield Generator 16416 | -3/Research | Lost 6 parts (1p1n3u1w) 16540 | -3/Research | Research terminal network offline 16596 | -3/Research | Discovered new exit (range 19) 16734 | -3/Research | Spotted B-86 Titan 16747 | -3/Research | Destroyed B-86 Titan 16814 | -3/Research | Found Fusion Bomb Launcher 17162 | -3/Research | Spotted Striker 17166 | -3/Research | Spotted Striker 17166 | -3/Research | Destroyed Striker 17177 | -3/Research | Destroyed Striker 17249 | -3/Research | Spotted Striker 17260 | -3/Research | Destroyed Striker 17297 | -3/Research | Lost 3 parts (3u) 17306 | -3/Research | Destroyed 12 combat bots 17467 | -3/Research | Found Prototype Launcher 17467 | -3/Research | Identified Hellfire Missile Launcher 17816 | -3/Research | Spotted Striker 17821 | -3/Research | Destroyed Striker 17854 | -3/Research | Build established: Botlord-Gunner 17861 | -3/Research | Spotted Striker 17865 | -3/Research | Spotted Executioner 17866 | -3/Research | Spotted Executioner 17875 | -3/Research | Spotted Striker 17875 | -3/Research | Destroyed Executioner 17878 | -3/Research | Destroyed Executioner 17887 | -3/Research | Destroyed Striker 17892 | -3/Research | Destroyed Striker 17931 | -3/Research | Spotted Striker 17967 | -3/Research | Spotted Striker 17977 | -3/Research | Destroyed Striker 18004 | -3/Research | Spotted Striker 18044 | -3/Research | Spotted Striker 18047 | -3/Research | Spotted Striker 18051 | -3/Research | Destroyed Striker 18082 | -3/Research | Destroyed Striker 18114 | -3/Research | Lost 7 parts (1n5u1w) 18139 | -3/Research | Found Enh. Force Lance 18169 | -3/Research | Build established: Botlord-Mutant 18180 | -3/Research | Spotted Striker 18187 | -3/Research | Spotted Striker 18192 | -3/Research | Spotted Striker 18215 | -3/Research | Destroyed Striker 18215 | -3/Research | Destroyed Striker 18217 | -3/Research | Core integrity fell below 50% 18233 | -3/Research | Entered Quarantine 18251 | -3/Quarantine | Lost 16 parts (1p1n10u4w) 18437 | -3/Quarantine | Found Prototype Device 18437 | -3/Quarantine | Identified Exp. ECM Suite 18540 | -3/Quarantine | Scanned by Researcher 18582 | -3/Quarantine | Build established: Scavenger-Mutant 18647 | -3/Quarantine | Discovered new exit (range 5) 18649 | -3/Quarantine | Entered Research 18649 | -2/Research | Evolved 2 slots: Propulsion x2 18836 | -2/Research | Lost 6 parts (1p5u) 18847 | -2/Research | Destroyed 11 combat bots 19111 | -2/Research | Spotted B-90 Cyclops 19126 | -2/Research | Spotted B-90 Cyclops 19139 | -2/Research | Core integrity fell below 50% 19145 | -2/Research | Core integrity fell below 20% 19155 | -2/Research | Destroyed by C-57 Dissector with Dual-blade Saw Last Messages --------------- 19129_ Adv. Weight Redist. System severed. 19129_ K-01 Serf collects debris. 19130_ Relay Coupler [Grunt] destroyed. 19132_ Gyrokinetic Inverter severed. 19133_ U-05 Engineer lays Concrete. 19134_ K-01 Serf collects debris. 19134_ U-05 Engineer lays Concrete. 19135_ U-05 Engineer builds a Wall. 19137_ Adv. Target Analyzer severed. 19138_ Potential Refractor disabled. 19138_ Adv. Signal Interpreter destroyed. 19138_ K-01 Serf collects debris. 19139_ Imp. Targeting Computer severed. 19142_ K-01 Serf collects debris. 19144_ Relay Coupler [Sentry] severed. 19149_ Adv. Salvage Targeting Computer severed. 19151_ Imp. Armor Integrity Analyzer severed. 19153_ Penetrated by Slug. 19153_ Slug penetrates Door. 19153_ Adv. Launcher Guidance Computer severed. Map ----- +----------------------------------------------------+ | ???????????????????????????# """""" "" | | ???????????????????????????# | | ???????????????????????????# | | ???????????????????????????+ | | ???????????????????????????# | | ???????????????????????????# | | ???????????????????????????# ###+####### ####+ | | ???????????????????????????# #?????????# #??? | | ???????????????????????????# #?????????#### | | ???????????????????????????# #????????????# ]] | | ???????????????????????????# #????????????# ]! | | ???????????????????????????# #????????????# ] | | ???????????????????????????# #????????????# | | ???????????????????????????# #????????????? | | ???????????????????????????# #????????????? | | ???????????????????????????# #??????????????? | | ???????????????????????????+^ #????????????????? | | ???????????????????????????# #????????????????? | | ???????????????????????????# #??????####??????? | | ???????????????????????????# #???? #??????? | | ???????????????????????????# #??? = #??????? | | ????????????????#####??????# #? #??????? | | ????????????????# ?????# # #??????? | | ????????????????# ##### c ; ! #??????? | | ????????????????+ cc k# """ #??????? | | ????????????????# Y @c #????" ??????????? | | ????????????????# ##### +????????????????? | | ????????????????# ??????# #????????????????? | | ??????????????????#????????# #????????????????? | | ???????????????????????????# ???????????????? | | ???????????????????????????########??????????????? | | ?????????????????????????????????????????????????? | | ?????????????????????????????????????????????????? | | ?????????????????????????????????????????????????? | | ?????????????????????????????????????????????????? | | ?????????????????????????????????????????????????? | | ?????????????????????????????????????????????????? | | ?????????????????????????????????????????????????? | | ?????????????????????????????????????????????????? | | ?????????????????????????????????????????????????? | | ????????????????????????????????????????????????## | | ????????????????????????????????????????????????# | | ????????????????????????????????????????######### | | ?????????????????????????????????????? | | ?????????????????????????????????????????????#### | | ????????????????????????????????????????????????# | | ???????????????????????????????????????????????### | | ???????????????????????????????????????????????# | | ???????????????????????????????????????????????# | | ???????????????????????????????????????????????# | +----------------------------------------------------+ Best States ------------- Heat Dissipation 65 Coolant Potential 80 Energy Generation 25 Energy Capacity 490 Matter Stores 300 Matter Capacity 300 Sight Range 20 Robot Scan Range 20 Terrain Scan Range 24 Terrain Scan Density 10 Jamming Range 16 Cloak Strength 2 Additional Mass Support 9 Armor Coverage 1350 Resistance: TH 30 Resistance: EM 20 Core Shielding 40 Weapon Shielding 66 Point Defense Rating 160 Evasion (%) 73 Targeting Accuracy 6 Launcher Accuracy 40 Target Analysis 12 Core Analysis 6 Armor Integrity Analysis 40 Recoil Reduction 2 Kinecelleration 40 Salvage Targeting 3 Offensive Hacking 10 Relay Coupler Types 7 Relay Coupler Value 137 Item Schematics ----------------- None Robot Schematics ------------------ None Fabricated ------------ Nothing Alien Tech Used ----------------- None Achievements -------------- None Challenges ------------ None Game ------ Seed LinearAdvancedSteel Manual? 1 Play Time 04:39:38 Cumulative 269.9 hours Start 2022.04.22 @ 21:45:50 End 2022.04.23 @ 22:50:14 Sessions 7 Manual Loads 0 Difficulty Rogue Special Mode None Game No. 136 Rogue 132 Adventurer 0 Explorer 4 Win Type - Total 15 Types 4/0/2/3/1/2/3/0/0 Lore% 75 Gallery% 81 Achievement% 73 Wizard Run 0 Options --------- ASCII 0 Keyboard 0 Movement Mouse Keybinds 0 Fullscreen 1 Font 18/SmallcapsGlow Map View 76x50 Tactical HUD 1 Map Filters NONE Filters NONE Steam 1 RUN: 8ea7a672-7e1d-4a66-a96b-9772033b9939